bitfinex/quotes_BTCUSD_20250809
["timestamp","ask_amount","ask_price","bid_price","bid_amount"]
[1754736913346,0.20084325,117490.0,117480.0,0.13624]
[1754736916195,0.17528725,117490.0,117480.0,0.13624]
[1754736916626,0.17528725,117490.0,117480.0,0.44931064]
[1754736917096,0.20084325,117490.0,117480.0,0.44931064]
[1754736917707,0.20084325,117490.0,117480.0,0.45127064]
[1754736917910,0.20084325,117490.0,117480.0,0.44927064]
[1754736918151,0.20085325,117490.0,117480.0,0.44731064]
[1754736919199,0.20085325,117490.0,117480.0,0.13424]
[1754736919404,0.20085325,117490.0,117480.0,0.44731064]
[1754736925094,0.20085325,117490.0,117480.0,0.13424]
[1754736925525,0.20085325,117490.0,117480.0,0.44731064]
[1754736929226,0.20085325,117490.0,117470.0,0.17065589]
[1754736929484,0.17327174,117480.0,117470.0,0.3404]
[1754736929701,0.17531174,117480.0,117470.0,0.4746]
[1754736929886,0.17531174,117480.0,117470.0,0.1346]
[1754736930406,0.17531174,117480.0,117470.0,0.1356]
[1754736930830,0.17531174,117480.0,117470.0,0.1346]
[1754736931017,0.17531174,117480.0,117470.0,0.1356]
[1754736931554,0.17531174,117480.0,117470.0,0.1346]
[1754736931787,0.17531174,117480.0,117470.0,0.44767064]
[1754736932604,0.17531174,117480.0,117470.0,0.1346]
[1754736932824,0.17531174,117480.0,117470.0,0.44767064]
[1754736933403,0.17024174,117480.0,117470.0,0.44963064]
[1754736933818,0.19580074,117480.0,117470.0,0.44963064]
[1754736934818,0.20087074,117480.0,117470.0,0.44963064]
[1754736935860,0.20087074,117480.0,117470.0,0.13656]
[1754736936064,0.20087074,117480.0,117470.0,0.44963064]
[1754736936284,0.20087074,117480.0,117470.0,0.13656]
[1754736936483,0.20087074,117480.0,117470.0,0.44963064]
[1754736938336,0.30518187,117480.0,117470.0,0.0004]
[1754736938554,0.30518187,117480.0,117470.0,0.13456]
[1754736939634,0.30718187,117480.0,117470.0,0.13456]
[1754736940493,0.30918187,117480.0,117470.0,0.13456]
[1754736941119,0.35794844,117480.0,117470.0,0.0004]
[1754736941377,0.44334187,117480.0,117470.0,1e-08]
[1754736941817,0.80834187,117480.0,117470.0,1e-08]
[1754736942755,0.21270525,117470.0,117460.0,1e-08]
[1754736942977,0.30463736,117470.0,117460.0,1e-08]
[1754736943215,0.33451059,117470.0,117460.0,1e-08]
[1754736943487,0.64463736,117470.0,117460.0,1e-08]
[1754736944840,0.64963736,117470.0,117460.0,1e-08]
[1754736945299,0.78879736,117470.0,117460.0,1e-08]
[1754736946637,0.76379736,117470.0,117460.0,1e-08]
[1754736946876,0.62963736,117470.0,117460.0,1e-08]
[1754736947018,0.76379736,117470.0,117460.0,1e-08]
[1754736947434,0.62963736,117470.0,117460.0,1e-08]
[1754736947638,0.42379736,117470.0,117460.0,1e-08]
[1754736948444,0.42375736,117470.0,117460.0,0.00212001]
[1754736948667,0.28456736,117470.0,117460.0,0.00212001]
[1754736949509,0.27956736,117470.0,117460.0,0.00212001]
[1754736949729,0.17525623,117470.0,117460.0,0.00532001]
[1754736950341,0.17425623,117470.0,117460.0,0.00532]
[1754736950554,0.17825623,117470.0,117460.0,0.00632]
[1754736951093,0.17425623,117470.0,117460.0,0.00532]
[1754736951305,0.17625623,117470.0,117460.0,0.00532]
[1754736951956,0.19781823,117470.0,117460.0,0.00532]
[1754736952184,0.19881823,117470.0,117460.0,0.02886]
[1754736953864,0.19881823,117470.0,117460.0,0.02566]
[1754736954753,0.19881823,117470.0,117460.0,0.02886]
[1754736957936,0.19881823,117470.0,117460.0,0.02566]
[1754736959360,0.17325623,117470.0,117460.0,0.02566]
[1754736960394,0.003,117470.0,117460.0,0.19913073]
[1754736960604,0.003,117470.0,117460.0,0.61699343]
[1754736961012,0.003,117470.0,117460.0,0.19913073]
[1754736961633,0.001,117470.0,117460.0,0.19913073]
[1754736962754,0.17024174,117480.0,117470.0,0.17025623]
[1754736962967,0.17024174,117480.0,117470.0,0.30645623]
[1754736963997,0.17124174,117480.0,117470.0,0.30645623]
[1754736964202,0.17124174,117480.0,117470.0,0.1362]
[1754736964437,0.17124174,117480.0,117470.0,0.33319623]
[1754736965900,0.001,117480.0,117470.0,0.33319623]
[1754736966031,0.001,117480.0,117470.0,0.75105893]
[1754736966656,0.001,117480.0,117470.0,0.33319623]
[1754736967504,0.001,117480.0,117470.0,0.32999623]
[1754736969655,0.17124174,117480.0,117470.0,0.32999623]
[1754736973929,0.17124174,117480.0,117470.0,0.15974]
[1754736975832,0.17335174,117480.0,117470.0,0.15974]
[1754736976055,0.17644174,117480.0,117470.0,0.13408]
[1754736994602,0.17644174,117480.0,117470.0,0.13621]
[1754736996535,0.17335174,117480.0,117470.0,0.13621]
[1754736996774,0.17027073,117460.0,117450.0,0.00340069]
[1754736997002,0.17235073,117460.0,117450.0,0.13728069]
[1754736997261,0.17536073,117460.0,117450.0,0.13728069]
[1754736997982,0.17536073,117460.0,117450.0,0.13828069]
[1754736998234,0.17548117,117460.0,117450.0,0.13828069]
[1754736998450,0.17548117,117460.0,117450.0,0.14041069]
[1754736998667,0.17548117,117460.0,117450.0,0.14241069]
[1754736998912,0.17548117,117460.0,117450.0,0.14141069]
[1754736999953,0.17548117,117460.0,117450.0,0.13941069]
[1754737000470,0.17648117,117460.0,117450.0,0.13941069]
[1754737000947,0.1847225,117460.0,117450.0,0.13941069]
[1754737002979,0.1847225,117460.0,117450.0,0.13728069]
[1754737004484,0.1847225,117460.0,117450.0,0.00340069]
[1754737004713,0.1847225,117460.0,117450.0,0.14048069]
[1754737006451,0.28903363,117460.0,117450.0,0.14044069]
[1754737006671,0.31459963,117460.0,117450.0,0.14044069]
[1754737013265,0.2072785,117460.0,117450.0,0.14257069]
[1754737014118,0.2103585,117460.0,117450.0,0.14257069]
[1754737014974,0.2051985,117460.0,117450.0,0.14257069]
[1754737015187,0.19695717,117460.0,117450.0,0.14569069]
[1754737015831,0.17139117,117460.0,117450.0,0.14569069]
[1754737016070,0.17139117,117460.0,117450.0,0.31597591]
[1754737016287,0.17139117,117460.0,117450.0,0.33881591]
[1754737017617,0.17139117,117460.0,117450.0,0.16541069]
[1754737019357,0.17139117,117460.0,117450.0,0.33569591]
[1754737019784,0.00112044,117460.0,117450.0,0.75667861]
[1754737020733,0.00112044,117460.0,117450.0,0.84354072]
[1754737021399,0.00012044,117460.0,117450.0,0.84354072]
[1754737021880,0.00012044,117460.0,117450.0,0.84454072]
[1754737025703,0.00012044,117460.0,117450.0,0.42667802]
[1754737026172,0.17039117,117460.0,117450.0,0.42667802]
[1754737026393,0.17555117,117460.0,117450.0,0.00440069]
[1754737026613,0.17555117,117460.0,117450.0,0.14024069]
[1754737027468,0.17555117,117460.0,117450.0,0.31052591]
[1754737027703,0.17555117,117460.0,117450.0,0.14024069]
[1754737028322,0.17555117,117460.0,117450.0,0.31052591]
[1754737028571,0.17555117,117460.0,117450.0,0.00440069]
[1754737028792,0.17555117,117460.0,117450.0,0.14016069]
[1754737029730,0.17555117,117460.0,117450.0,0.13916069]
[1754737029951,0.20111517,117460.0,117450.0,0.13916069]
[1754737030832,0.20211517,117460.0,117450.0,0.13916069]
[1754737035395,0.20211517,117460.0,117450.0,0.14129069]
[1754737035862,0.19903517,117460.0,117450.0,0.14129069]
[1754737036515,0.20211517,117460.0,117450.0,0.14129069]
[1754737039064,0.20211517,117460.0,117450.0,0.13916069]
[1754737043166,0.20211517,117460.0,117450.0,0.00340069]
[1754737043389,0.20211517,117460.0,117450.0,0.13872069]
[1754737043827,0.3064263,117460.0,117450.0,0.13868069]
[1754737049926,0.3012663,117460.0,117450.0,0.14072069]
[1754737050669,0.3062263,117460.0,117450.0,0.14072069]
[1754737051105,0.3062263,117460.0,117450.0,0.13868069]
[1754737056143,0.3062263,117460.0,117450.0,0.00340069]
[1754737056359,0.3062263,117460.0,117450.0,0.13808069]
[1754737060549,0.19695517,117460.0,117450.0,0.14012069]
[1754737061819,0.20191517,117460.0,117450.0,0.14012069]
[1754737065077,0.19894517,117460.0,117450.0,0.14012069]
[1754737066424,0.20191517,117460.0,117450.0,0.14012069]
[1754737067224,0.20191517,117460.0,117450.0,0.13808069]
[1754737069160,0.20191517,117460.0,117450.0,0.14016069]
[1754737078870,0.19695517,117460.0,117450.0,0.14016069]
[1754737081763,0.20203517,117460.0,117450.0,0.14016069]
[1754737094092,0.20203517,117460.0,117450.0,0.13808069]
[1754737100727,0.19695517,117460.0,117450.0,0.14008069]
[1754737101801,0.19898517,117460.0,117450.0,0.14008069]
[1754737105049,0.20209517,117460.0,117450.0,0.14008069]
[1754737114542,0.20209517,117460.0,117450.0,0.04008069]
[1754737129611,0.19898517,117460.0,117450.0,0.04008069]
[1754737130086,0.02668444,117460.0,117450.0,0.52363013]
[1754737130309,0.02668444,117460.0,117450.0,0.52678013]
[1754737130532,0.02668444,117460.0,117450.0,0.55125013]
[1754737130740,0.00112044,117460.0,117450.0,0.55125013]
[1754737130955,0.00012044,117460.0,117450.0,0.55125013]
[1754737131344,0.00012044,117460.0,117450.0,0.55225013]
[1754737133467,0.00012044,117460.0,117450.0,0.23898591]
[1754737133468,0.17039117,117460.0,117450.0,0.23898591]
[1754737133673,0.17039117,117460.0,117450.0,0.23583591]
[1754737141088,0.17039117,117460.0,117450.0,0.54910013]
[1754737148717,0.17039117,117460.0,117450.0,0.23583591]
[1754737148937,0.17039117,117460.0,117450.0,0.54910013]
[1754737150698,0.00012044,117460.0,117450.0,0.63911224]
[1754737150917,0.00012044,117460.0,117450.0,1.35237646]
[1754737151136,0.00012044,117460.0,117450.0,1.03911224]
[1754737151807,0.00012044,117460.0,117450.0,1.03811224]
[1754737152050,0.00012044,117460.0,117450.0,1.04111224]
[1754737153425,0.00012044,117460.0,117450.0,1.35437646]
[1754737158753,0.00012044,117460.0,117450.0,1.36287646]
[1754737161381,0.00012044,117460.0,117450.0,1.38843246]
[1754737161853,0.00012044,117460.0,117450.0,1.72843246]
[1754737166253,0.00012044,117460.0,117450.0,1.10190402]
[1754737166468,0.00012044,117460.0,117450.0,1.72843246]
[1754737169637,0.00012044,117460.0,117450.0,1.93275246]
[1754737176532,0.00012044,117460.0,117450.0,1.92960246]
[1754737178843,0.00012044,117460.0,117450.0,1.92110246]
[1754737180092,0.00012044,117460.0,117450.0,1.92421246]
[1754737181254,0.00012044,117460.0,117450.0,1.29768402]
[1754737181480,1.731e-05,117460.0,117450.0,1.92421246]
[1754737181678,1.731e-05,117460.0,117450.0,1.92110246]
[1754737182119,0.00521731,117460.0,117450.0,1.23852333]
[1754737182326,0.00521731,117460.0,117450.0,0.80684733]
[1754737182561,0.00521731,117460.0,117450.0,0.60684733]
[1754737183807,0.00521731,117460.0,117450.0,0.59834733]
[1754737184524,0.17548804,117460.0,117450.0,0.34228]
[1754737184747,0.17548804,117460.0,117450.0,0.51256522]
[1754737190166,0.17548804,117460.0,117450.0,0.82582944]
[1754737194650,0.00198731,117460.0,117450.0,0.82792944]
[1754737194861,1.731e-05,117460.0,117450.0,0.82792944]
[1754737195046,0.00205731,117460.0,117450.0,0.82792944]
[1754737195301,0.00501731,117460.0,117450.0,0.82792944]
[1754737196131,0.00501731,117460.0,117450.0,0.82582944]
[1754737197926,0.00501731,117460.0,117450.0,0.51256522]
[1754737198172,0.00501731,117460.0,117450.0,0.82582944]
[1754737199629,0.00501731,117460.0,117450.0,0.51256522]
[1754737199812,0.00501731,117460.0,117450.0,0.82582944]
[1754737200462,0.00501731,117460.0,117450.0,0.82792944]
[1754737201419,0.00501731,117460.0,117450.0,1.40377577]
[1754737201420,1.731e-05,117460.0,117450.0,1.40377577]
[1754737206269,1.731e-05,117460.0,117450.0,1.09051155]
[1754737206776,1.731e-05,117460.0,117450.0,0.77724733]
[1754737206991,1.731e-05,117460.0,117450.0,1.09051155]
[1754737207738,1.731e-05,117460.0,117450.0,0.63925733]
[1754737207869,1.731e-05,117460.0,117450.0,1.08764155]
[1754737208790,1.731e-05,117460.0,117450.0,1.19188357]
[1754737210063,1.731e-05,117460.0,117450.0,0.77437733]
[1754737210366,1.731e-05,117460.0,117450.0,1.19188357]
[1754737213259,1.731e-05,117460.0,117450.0,0.77437733]
[1754737213498,1.731e-05,117460.0,117450.0,1.19188357]
[1754737213925,1.731e-05,117460.0,117450.0,1.19491357]
[1754737216477,1.731e-05,117460.0,117450.0,0.77740733]
[1754737216726,1.731e-05,117460.0,117450.0,1.19188357]
[1754737217929,1.731e-05,117460.0,117450.0,1.19492357]
[1754737218747,1.731e-05,117460.0,117450.0,1.20342357]
[1754737219737,1.731e-05,117460.0,117450.0,1.06830357]
[1754737219967,1.731e-05,117460.0,117450.0,1.20034357]
[1754737221978,1.731e-05,117460.0,117450.0,0.78283733]
[1754737222184,1.731e-05,117460.0,117450.0,1.20034357]
[1754737223816,1.731e-05,117460.0,117450.0,0.78283733]
[1754737223998,1.731e-05,117460.0,117450.0,1.20034357]
[1754737226328,1.731e-05,117460.0,117450.0,1.20338357]
[1754737227281,1.731e-05,117460.0,117450.0,0.78587733]
[1754737227496,1.731e-05,117460.0,117450.0,1.20034357]
[1754737228178,1.731e-05,117460.0,117450.0,0.78283733]
[1754737228398,1.731e-05,117460.0,117450.0,1.20034357]
[1754737232770,1.731e-05,117460.0,117450.0,1.09597151]
[1754737233933,0.00509731,117460.0,117450.0,0.62296733]
[1754737234115,0.00509731,117460.0,117450.0,1.06272151]
[1754737234537,0.00509731,117460.0,117450.0,1.06470151]
[1754737240750,0.00509731,117460.0,117450.0,1.11272151]
[1754737241398,0.00509731,117460.0,117450.0,1.11256151]
[1754737242494,0.00509731,117460.0,117450.0,0.79942733]
[1754737242716,0.00509731,117460.0,117450.0,1.11256151]
[1754737243778,1.731e-05,117460.0,117450.0,1.26758151]
[1754737243979,1.731e-05,117460.0,117450.0,1.29191151]
[1754737244861,1.731e-05,117460.0,117450.0,1.60504569]
[1754737245065,1.731e-05,117460.0,117450.0,1.80504569]
[1754737246665,1.731e-05,117460.0,117450.0,1.59623682]
[1754737248007,1.731e-05,117460.0,117450.0,1.75364292]
[1754737248669,1.731e-05,117460.0,117450.0,1.75264292]
[1754737249136,1.731e-05,117460.0,117450.0,1.75464292]
[1754737249389,1.731e-05,117460.0,117450.0,2.09464292]
[1754737249565,1.731e-05,117460.0,117450.0,2.35844292]
[1754737250373,1.731e-05,117460.0,117450.0,2.36044292]
[1754737250580,1.731e-05,117460.0,117450.0,1.94098343]
[1754737250785,1.731e-05,117460.0,117450.0,2.35844292]
[1754737251134,1.731e-05,117460.0,117450.0,2.36044292]
[1754737255622,1.731e-05,117460.0,117450.0,1.94298343]
[1754737255828,1.731e-05,117460.0,117450.0,2.36044292]
[1754737256054,1.731e-05,117460.0,117450.0,2.35194292]
[1754737257366,1.731e-05,117460.0,117450.0,2.38639194]
[1754737257586,1.731e-05,117460.0,117450.0,2.41194394]
[1754737258244,1.731e-05,117460.0,117450.0,2.50603906]
[1754737258477,1.731e-05,117460.0,117450.0,2.53103906]
[1754737258691,1.731e-05,117460.0,117450.0,2.52903906]
[1754737258904,1.731e-05,117460.0,117450.0,2.52703906]
[1754737260692,1.731e-05,117460.0,117450.0,2.55203906]
[1754737261113,1.731e-05,117460.0,117450.0,2.55803906]
[1754737261795,0.10302,117490.0,117480.0,1.13770123]
[1754737262013,0.10525074,117490.0,117480.0,1.37046334]
[1754737262237,0.10525074,117490.0,117480.0,1.37700728]
[1754737263414,0.10525074,117490.0,117480.0,1.37800728]
[1754737265832,0.10525074,117490.0,117480.0,0.82522779]
[1754737266062,0.10525074,117490.0,117480.0,1.17800728]
[1754737267437,0.10525074,117490.0,117480.0,1.16950728]
[1754737267849,0.10525074,117490.0,117480.0,0.75204779]
[1754737268074,0.10525074,117490.0,117480.0,1.16950728]
[1754737270090,0.10525074,117490.0,117480.0,1.16954728]
[1754737270318,0.10525074,117490.0,117480.0,0.26672779]
[1754737270531,0.27547799,117490.0,117480.0,0.40216779]
[1754737271411,0.27547799,117490.0,117480.0,0.40116779]
[1754737271844,0.27547799,117490.0,117480.0,0.40216779]
[1754737272080,0.27547799,117490.0,117480.0,0.40146779]
[1754737272325,0.27547799,117490.0,117480.0,0.60046779]
[1754737272535,0.27547799,117490.0,117480.0,0.42230211]
[1754737273218,0.27547799,117490.0,117480.0,0.42330211]
[1754737273627,0.27547799,117490.0,117480.0,0.42230211]
[1754737274796,0.27547799,117490.0,117480.0,0.59254385]
[1754737281427,0.30103099,117490.0,117480.0,0.59254385]
[1754737282620,0.333951,117490.0,117480.0,0.28686211]
[1754737282830,0.17025623,117470.0,117460.0,0.2085]
[1754737283038,0.17546623,117470.0,117460.0,0.33528]
[1754737283276,0.17546623,117470.0,117460.0,0.13528]
[1754737283277,0.20102323,117470.0,117460.0,0.13528]
[1754737283934,0.17027073,117460.0,117450.0,0.20432]
[1754737284157,0.17548073,117460.0,117450.0,0.34072]
[1754737289326,0.17548073,117460.0,117450.0,0.20432]
[1754737289540,0.51548073,117460.0,117450.0,0.3414]
[1754737290816,0.51648073,117460.0,117450.0,0.3414]
[1754737291233,0.51748073,117460.0,117450.0,0.3414]
[1754737294496,0.51748073,117460.0,117450.0,0.3406]
[1754737297133,0.51748073,117460.0,117450.0,0.34096]
[1754737297360,0.51748073,117460.0,117450.0,0.20352]
[1754737297771,0.51748073,117460.0,117450.0,0.34096]
[1754737299769,0.51028522,117450.0,117440.0,1.717824]
[1754737300001,0.53294424,117450.0,117440.0,1.855264]
[1754737300471,0.55851124,117450.0,117440.0,1.855264]
[1754737301252,0.55851124,117450.0,117440.0,1.85573695]
[1754737301904,0.56051124,117450.0,117440.0,1.85573695]
[1754737303273,0.56251124,117450.0,117440.0,1.85573695]
[1754737305271,0.73133776,117450.0,117440.0,1.85573695]
[1754737305483,0.64937335,117450.0,117440.0,1.85573695]
[1754737315143,0.64937335,117450.0,117440.0,1.33884395]
[1754737320388,0.53985222,117450.0,117440.0,1.34400395]
[1754737321315,0.53985222,117450.0,117440.0,1.34090395]
[1754737324317,0.53985222,117450.0,117440.0,1.34090395]
[1754737324745,0.19985222,117450.0,117440.0,1.36712395]
[1754737325430,0.53985222,117450.0,117440.0,1.36712395]
[1754737329554,0.53985222,117450.0,117440.0,1.36402395]
[1754737329779,0.53985222,117450.0,117440.0,1.36712395]
[1754737334209,0.53985222,117450.0,117440.0,1.36402395]
[1754737334834,0.54501222,117450.0,117440.0,1.34090395]
[1754737335270,0.53985222,117450.0,117440.0,1.34090395]
[1754737339456,0.53985222,117450.0,117440.0,1.51431367]
[1754737339681,0.53985222,117450.0,117440.0,1.53784367]
[1754737343132,0.53985222,117450.0,117440.0,1.54640777]
[1754737345352,0.369567,117450.0,117440.0,2.05072937]
[1754737345601,0.344,117450.0,117440.0,2.05072937]
[1754737345999,0.344,117450.0,117440.0,1.63326988]
[1754737346667,0.342,117450.0,117440.0,1.63326988]
[1754737347464,0.34,117450.0,117440.0,1.63326988]
[1754737347837,0.341,117450.0,117440.0,1.63326988]
[1754737348284,0.342,117450.0,117440.0,1.63326988]
[1754737349124,0.002,117450.0,117440.0,1.63326988]
[1754737349389,0.17228522,117450.0,117440.0,1.63370988]
[1754737350315,0.17228522,117450.0,117440.0,1.63059988]
[1754737353873,0.17752522,117450.0,117440.0,1.20140395]
[1754737354101,0.17752522,117450.0,117440.0,1.33924395]
[1754737354616,0.20308822,117450.0,117440.0,1.33924395]
[1754737355500,0.20308822,117450.0,117440.0,1.50954367]
[1754737355757,0.20308822,117450.0,117440.0,1.51813267]
[1754737355957,0.20308822,117450.0,117440.0,1.52019267]
[1754737360610,0.20308822,117450.0,117440.0,1.34130395]
[1754737360818,0.20308822,117450.0,117440.0,1.33924395]
[1754737362537,0.20308822,117450.0,117440.0,1.51160367]
[1754737363389,0.027563,117450.0,117440.0,1.51160367]
[1754737363584,0.027563,117450.0,117440.0,1.51471367]
[1754737365475,0.027563,117450.0,117440.0,1.93217316]
[1754737365693,0.027563,117450.0,117440.0,1.95570316]
[1754737366106,0.027563,117450.0,117440.0,1.53824367]
[1754737367018,0.027563,117450.0,117440.0,1.53513367]
[1754737367882,0.027563,117450.0,117440.0,1.53813367]
[1754737368097,0.027563,117450.0,117440.0,1.62499578]
[1754737368310,0.002,117450.0,117440.0,2.04245527]
[1754737371498,0.002,117450.0,117440.0,2.03945527]
[1754737371719,0.002,117450.0,117440.0,1.62199578]
[1754737372862,0.00402,117450.0,117440.0,1.59846578]
[1754737373070,0.00712,117450.0,117440.0,1.59640578]
[1754737373505,0.00712,117450.0,117440.0,1.59845578]
[1754737373946,0.17740522,117450.0,117440.0,1.59845578]
[1754737374158,0.00712,117450.0,117440.0,1.59845578]
[1754737375060,0.002,117450.0,117440.0,1.59845578]
[1754737375971,0.17740522,117450.0,117440.0,1.33924395]
[1754737376380,0.20296822,117450.0,117440.0,1.33924395]
[1754737380009,0.20296822,117450.0,117440.0,1.20140395]
[1754737380229,0.20296822,117450.0,117440.0,1.33876395]
[1754737381535,0.20296822,117450.0,117440.0,1.20140395]
[1754737381752,0.20296822,117450.0,117440.0,1.33860395]
[1754737383104,0.032683,117450.0,117440.0,1.33860395]
[1754737386452,0.027563,117450.0,117440.0,1.34065395]
[1754737386668,0.027563,117450.0,117440.0,1.76111344]
[1754737387522,0.026563,117450.0,117440.0,1.76111344]
[1754737387968,0.026563,117450.0,117440.0,1.76211344]
[1754737388855,0.025563,117450.0,117440.0,1.76211344]
[1754737389283,0.025563,117450.0,117440.0,1.78591344]
[1754737389493,0.025563,117450.0,117440.0,1.87277555]
[1754737391121,0.025563,117450.0,117440.0,1.45531606]
[1754737391979,0.025563,117450.0,117440.0,1.87277555]
[1754737392415,0.025563,117450.0,117440.0,1.45531606]
[1754737392616,0.025563,117450.0,117440.0,1.87277555]
[1754737392834,0.025563,117450.0,117440.0,1.45531606]
[1754737395781,0.025563,117450.0,117440.0,1.45231606]
[1754737399855,0.025563,117450.0,117440.0,1.45528606]
[1754737400572,0.025563,117450.0,117440.0,1.45231606]
[1754737402975,0.025563,117450.0,117440.0,1.76557251]
[1754737403626,0.025563,117450.0,117440.0,1.45231606]
[1754737403839,0.025563,117450.0,117440.0,1.76557251]
[1754737404259,0.025563,117450.0,117440.0,1.45231606]
[1754737404465,0.025563,117450.0,117440.0,1.76557251]
[1754737404677,0.025563,117450.0,117440.0,1.45231606]
[1754737405286,0.027613,117450.0,117440.0,1.42851606]
[1754737405483,0.030613,117450.0,117440.0,1.20240395]
[1754737405692,0.030613,117450.0,117440.0,1.33908395]
[1754737407528,0.030613,117450.0,117440.0,1.33808395]
[1754737407738,0.031613,117450.0,117440.0,1.33808395]
[1754737408428,0.031613,117450.0,117440.0,1.34010395]
[1754737408636,0.031613,117450.0,117440.0,1.20342395]
[1754737408842,0.031613,117450.0,117440.0,1.34014395]
[1754737409087,0.032613,117450.0,117440.0,1.33812395]
[1754737411928,0.032613,117450.0,117440.0,1.33804395]
[1754737412841,0.032613,117450.0,117440.0,1.20140395]
[1754737413079,0.032613,117450.0,117440.0,1.33804395]
[1754737414209,0.032613,117450.0,117440.0,1.33800395]
[1754737416913,0.032613,117450.0,117440.0,1.33808395]
[1754737419733,0.032613,117450.0,117440.0,1.20140395]
[1754737419948,0.032613,117450.0,117440.0,1.33796395]
[1754737420177,0.032613,117450.0,117440.0,1.33998395]
[1754737421102,0.032613,117450.0,117440.0,1.33994395]
[1754737422797,0.029613,117450.0,117440.0,1.33994395]
[1754737423007,0.53989822,117450.0,117440.0,1.33994395]
[1754737424659,0.54289822,117450.0,117440.0,1.33994395]
[1754737425068,0.54289822,117450.0,117440.0,1.33792395]
[1754737425682,0.54289822,117450.0,117440.0,1.33796395]
[1754737429574,0.54289822,117450.0,117440.0,1.20140395]
[1754737431597,0.64720935,117450.0,117440.0,1.20140395]
[1754737432484,0.64620935,117450.0,117440.0,1.20140395]
[1754737432905,0.64920935,117450.0,117440.0,1.20140395]
[1754737433124,0.64820935,117450.0,117440.0,1.20140395]
[1754737433337,0.65120935,117450.0,117440.0,1.20140395]
[1754737435376,0.78780935,117450.0,117440.0,1.20140395]
[1754737438505,0.78784935,117450.0,117440.0,1.20140395]
[1754737438737,0.65120935,117450.0,117440.0,1.33804395]
[1754737439538,0.65120935,117450.0,117440.0,1.34320395]
[1754737439539,0.54184822,117450.0,117440.0,1.34320395]
[1754737440116,0.54184822,117450.0,117440.0,1.34015395]
[1754737441838,0.54184822,117450.0,117440.0,1.34320395]
[1754737442052,0.54184822,117450.0,117440.0,1.36695395]
[1754737442261,0.54184822,117450.0,117440.0,1.6802104]
[1754737442705,0.54184822,117450.0,117440.0,1.85051012]
[1754737442925,0.54184822,117450.0,117440.0,1.6802104]
[1754737443162,0.53884822,117450.0,117440.0,1.85051012]
[1754737443815,0.53584822,117450.0,117440.0,1.6802104]
[1754737444029,0.53784822,117450.0,117440.0,1.6802104]
[1754737444668,0.53784822,117450.0,117440.0,1.36695395]
[1754737445095,0.53984822,117450.0,117440.0,1.53725367]
[1754737445532,0.53984822,117450.0,117440.0,1.85051012]
[1754737445745,0.53984822,117450.0,117440.0,1.23031395]
[1754737446445,0.53984822,117450.0,117440.0,1.36430395]
[1754737447091,0.54496822,117450.0,117440.0,1.33844395]
[1754737447823,0.54496822,117450.0,117440.0,1.34055395]
[1754737449121,0.54194822,117450.0,117440.0,1.34055395]
[1754737449331,0.53984822,117450.0,117440.0,1.34055395]
[1754737449758,0.54496822,117450.0,117440.0,1.34055395]
[1754737450403,0.54496822,117450.0,117440.0,1.33844395]
[1754737450611,0.54496822,117450.0,117440.0,1.20140395]
[1754737450822,0.54496822,117450.0,117440.0,1.33852395]
[1754737451744,0.54496822,117450.0,117440.0,1.34063395]
[1754737454995,0.54496822,117450.0,117440.0,1.20351395]
[1754737456139,0.53984822,117450.0,117440.0,1.20351395]
[1754737456346,0.53984822,117450.0,117440.0,1.34067395]
[1754737456813,0.53984822,117450.0,117440.0,1.34372395]
[1754737457162,0.53984822,117450.0,117440.0,1.36823395]
[1754737458211,0.53984822,117450.0,117440.0,1.36518395]
[1754737463803,0.54503822,117450.0,117440.0,1.34067395]
[1754737464241,0.54179822,117450.0,117440.0,1.20351395]
[1754737464453,0.53984822,117450.0,117440.0,1.34059395]
[1754737466264,0.54503822,117450.0,117440.0,1.34059395]
[1754737466925,0.53984822,117450.0,117440.0,1.34059395]
[1754737468129,0.54503822,117450.0,117440.0,1.34059395]
[1754737472776,0.54503822,117450.0,117440.0,1.33848395]
[1754737479991,0.54503822,117450.0,117440.0,1.33808395]
[1754737481254,0.54503822,117450.0,117440.0,1.34010395]
[1754737486582,0.54503822,117450.0,117440.0,1.33808395]
[1754737490387,0.78566935,117450.0,117440.0,1.20140395]
[1754737492467,0.78566935,117450.0,117440.0,1.33768395]
[1754737502431,0.78566935,117450.0,117440.0,1.20140395]
[1754737503628,0.8724636,117450.0,117440.0,1.20140395]
[1754737503878,0.78566935,117450.0,117440.0,1.20140395]
[1754737504057,0.81066935,117450.0,117440.0,0.59807682]
[1754737504313,0.83816959,117450.0,117440.0,0.59078542]
[1754737504507,0.83816959,117450.0,117440.0,0.3800027]
[1754737504508,0.80866935,117450.0,117440.0,0.3800027]
[1754737504723,0.80866935,117450.0,117440.0,0.21018822]
[1754737504972,0.9004636,117450.0,117440.0,0.21018822]
[1754737505214,0.51029972,117440.0,117430.0,0.0182582]
[1754737505406,0.73824183,117440.0,117430.0,0.0182582]
[1754737507141,0.74324183,117440.0,117430.0,0.0192582]
[1754737507560,0.74924183,117440.0,117430.0,0.0192582]
[1754737509409,0.77481583,117440.0,117430.0,0.0192582]
[1754737509638,0.7909478,117440.0,117430.0,0.0192582]
[1754737509895,0.77481583,117440.0,117430.0,0.0192582]
[1754737511643,0.63905583,117440.0,117430.0,0.0192582]
[1754737511853,0.76949583,117440.0,117430.0,0.0213382]
[1754737512298,0.78694485,117440.0,117430.0,0.0213382]
[1754737515176,0.78909485,117440.0,117430.0,0.0213382]
[1754737515417,0.79226485,117440.0,117430.0,0.0213382]
[1754737515962,0.29373583,117440.0,117430.0,0.0245382]
[1754737516243,0.29373583,117440.0,117430.0,0.77332383]
[1754737516244,0.011574,117440.0,117430.0,0.77332383]
[1754737516788,0.011574,117440.0,117430.0,1.05918594]
[1754737517234,0.3404728,117450.0,117440.0,0.17029972]
[1754737517456,0.0004728,117450.0,117440.0,0.17240972]
[1754737517676,0.3404728,117450.0,117440.0,0.20010972]
[1754737518374,0.3404728,117450.0,117440.0,0.20210972]
[1754737518596,0.0004728,117450.0,117440.0,0.20210972]
[1754737518821,0.3404728,117450.0,117440.0,0.20210972]
[1754737519088,0.51075802,117450.0,117440.0,0.20210972]
[1754737520121,0.51279802,117450.0,117440.0,0.00411]
[1754737520368,0.51594802,117450.0,117440.0,0.00811]
[1754737520771,0.51594802,117450.0,117440.0,0.00911]
[1754737520980,0.51594802,117450.0,117440.0,0.14487]
[1754737521204,0.51594802,117450.0,117440.0,0.13787]
[1754737521427,0.51279802,117450.0,117440.0,0.13787]
[1754737521703,0.51075802,117450.0,117440.0,0.14287]
[1754737522354,0.51594802,117450.0,117440.0,0.14287]
[1754737524058,0.51279802,117450.0,117440.0,0.14287]
[1754737524406,0.51075802,117450.0,117440.0,0.14287]
[1754737524627,0.51075802,117450.0,117440.0,0.14607]
[1754737524852,0.51075802,117450.0,117440.0,0.31636972]
[1754737526148,0.51075802,117450.0,117440.0,0.14607]
[1754737526779,0.53632202,117450.0,117440.0,0.14607]
[1754737526990,0.53632202,117450.0,117440.0,0.31636972]
[1754737527612,0.3660368,117450.0,117440.0,0.31636972]